fUSD/lending_fUSD_20250818
["ID","MTS","AMOUNT","RATE_DAILY","PERIOD"]
[380067101,1755527228830,690.79,0.00030136,120]
[380067102,1755527228896,400.0,0.00030136,120]
[380067103,1755527229597,5782.31,0.00030136,120]
[380067104,1755527230201,27425.89,0.00030136,120]
[380067105,1755527230676,4496.35,0.00030136,120]
[380067106,1755527231105,400.0,0.00030136,120]
[380067107,1755527231412,647.58,0.00030136,120]
[380067108,1755527231475,400.0,0.00030136,120]
[380067109,1755527231539,400.0,0.00030136,120]
[380067110,1755527231685,1978.96,0.00030136,120]
[380067111,1755527231778,1084.2,0.00030136,120]
[380067112,1755527231994,2182.47,0.00030136,120]
[380067113,1755527232056,5353.06,0.00030136,120]
[380067114,1755527232375,400.0,0.00030136,120]
[380067115,1755527232775,400.0,0.00030136,120]
[380067116,1755527232997,400.0,0.00030136,120]
[380067117,1755527233237,681.14,0.00030136,120]
[380067118,1755527234060,2372.75,0.00030136,120]
[380067119,1755527234584,4597.4,0.00030136,120]
[380067120,1755527237545,476.45,0.00030136,120]
[380067121,1755527238020,1238.63,0.00030136,120]
[380067122,1755527238478,400.0,0.00030136,120]
[380067123,1755527238779,400.0,0.00030136,120]
[380067124,1755527240152,3195.56,0.00030136,120]
[380067125,1755527240408,400.0,0.00030136,120]
[380067126,1755527240656,8659.74,0.00030136,120]
[380067127,1755527240872,7808.9,0.00030136,120]
[380067128,1755527241283,400.0,0.00030136,120]
[380067129,1755527241580,400.0,0.00030136,120]
[380067130,1755527242110,6818.88,0.00030136,120]
[380067131,1755527242335,400.0,0.00030136,120]
[380067132,1755527242936,400.0,0.00030136,120]
[380067133,1755527243032,2562.41,0.00030136,120]
[380067134,1755527243097,540.0,0.00030136,120]
[380067151,1755527243475,400.0,0.00030136,120]
[380067158,1755527243598,9339.68,0.00030136,120]
[380067186,1755527244403,11279.76,0.00030136,120]
[380067187,1755527244877,400.0,0.00030136,120]
[380067188,1755527245452,400.0,0.00030136,120]
[380067189,1755527245580,3735.1,0.00030136,120]
[380067190,1755527245632,4274.98,0.00030136,120]
[380067191,1755527245736,400.0,0.00030136,120]
[380067192,1755527245804,400.0,0.00030136,120]
[380067193,1755527246015,400.0,0.00030136,120]
[380067194,1755527246165,400.0,0.00030136,120]
[380067195,1755527248238,400.0,0.00030136,120]
[380067196,1755527248310,400.0,0.00030136,120]
[380067197,1755527248619,8384.78,0.00030136,120]
[380067198,1755527249012,4102.64,0.00030136,120]
[380067199,1755527249558,1196.38,0.00030136,120]
[380067200,1755527251012,645.25,0.00030136,120]
[380067201,1755527251745,1611.45,0.00030136,120]
[380067202,1755527252567,10675.43,0.00030136,120]
[380067203,1755527254015,895.79,0.00030136,120]
[380067204,1755527254087,2099.04,0.00030136,120]
[380067205,1755527254327,492.3,0.00030136,120]
[380067206,1755527255255,400.0,0.00030136,120]
[380067207,1755527255660,400.0,0.00030136,120]
[380067208,1755527256030,2436.56,0.00030136,120]
[380067209,1755527256187,400.0,0.00030136,120]
[380067210,1755527256709,400.0,0.00030136,120]
[380067211,1755527257054,9268.98,0.00030136,120]
[380067212,1755527257211,2141.09,0.00030136,120]
[380067213,1755527259067,400.0,0.00030136,120]
[380067214,1755527259137,807.73,0.00030136,120]
[380067215,1755527259350,15745.36,0.00030136,120]
[380067216,1755527259409,400.0,0.00030136,120]
[380067217,1755527259512,9375.41,0.00030136,120]
[380067218,1755527259587,5136.37,0.00030136,120]
[380067219,1755527259801,925.85,0.00030136,120]
[380067220,1755527259922,400.0,0.00030136,120]
[380067221,1755527262008,400.0,0.00030136,120]
[380067222,1755527262457,3226.16,0.00030136,120]
[380067223,1755527262854,4335.68,0.00030136,120]
[380067224,1755527263822,400.0,0.00030136,120]
[380067225,1755527264799,1356.62,0.00030136,120]
[380067226,1755527265048,666.83,0.00030136,120]
[380067227,1755527265302,4626.16,0.00030136,120]
[380067228,1755527265361,400.0,0.00030136,120]
[380067229,1755527265621,418.72711492,0.00030136,120]
[380067230,1755527266100,3359.39,0.00030136,120]
[380067231,1755527267345,4880.26,0.00030136,120]
[380067232,1755527267510,1316.91,0.00030136,120]
[380067233,1755527267773,4561.03,0.00030136,120]
[380067234,1755527267836,365.64571731,0.00030136,120]
[380067235,1755527267907,400.0,0.00030136,120]
[380067236,1755527268188,887.72,0.00030136,120]
[380067237,1755527268297,17090.61,0.00030136,120]
[380067238,1755527268894,2546.59,0.00030136,120]
[380067239,1755527270434,400.0,0.00030136,120]
[380067240,1755527270507,347.17,0.00030136,120]
[380067241,1755527271512,4982.02,0.00030136,120]
[380067242,1755527272851,400.0,0.00030136,120]
[380067243,1755527273028,3605.77,0.00030136,120]
[380067244,1755527273176,1078.85,0.00030136,120]
[380067245,1755527273808,400.0,0.00030136,120]
[380067246,1755527274692,655.85,0.00030136,120]
[380067247,1755527275059,4429.46,0.00030136,120]
[380067248,1755527275300,4774.69,0.00030136,120]
[380067249,1755527275481,400.0,0.00030136,120]
[380067250,1755527275542,400.0,0.00030136,120]
[380067251,1755527275614,494.79,0.00030136,120]
[380067252,1755527275665,400.0,0.00030136,120]
[380067253,1755527275874,2444.43,0.00030136,120]
[380067254,1755527276905,13320.8,0.00030136,120]
[380067255,1755527277789,400.0,0.00030136,120]
[380067256,1755527277873,400.0,0.00030136,120]
[380067257,1755527278062,406.12430906,0.00030136,120]
[380067258,1755527278812,4104.8,0.00030136,120]
[380067259,1755527280018,400.0,0.00030136,120]
[380067260,1755527280074,1055.32,0.00030136,120]
[380067261,1755527280138,1036.41,0.00030136,120]
[380067262,1755527280318,905.01,0.00030136,120]
[380067263,1755527280561,1877.02,0.00030136,120]
[380067264,1755527280875,836.38,0.00030136,120]
[380067265,1755527281619,29099.6,0.00030136,120]
[380067266,1755527282565,10115.56,0.00030136,120]
[380067267,1755527282623,4739.76,0.00030136,120]
[380067268,1755527284182,400.0,0.00030136,120]
[380067269,1755527284274,981.49,0.00030136,120]
[380067270,1755527284923,2338.58,0.00030136,120]
[380067271,1755527285218,403.1214771,0.00030136,120]
[380067272,1755527286747,400.0,0.00030136,120]
[380067273,1755527286990,400.0,0.00030136,120]
[380067274,1755527287545,400.0,0.00030136,120]
[380067275,1755527288326,3118.39,0.00030136,120]
[380067276,1755527289117,400.0,0.00030136,120]
[380067277,1755527289175,1022.04,0.00030136,120]
[380067278,1755527289569,400.0,0.00030136,120]
[380067279,1755527289810,400.0,0.00030136,120]
[380067280,1755527290357,400.0,0.00030136,120]
[380067281,1755527290576,4409.49,0.00030136,120]
[380067282,1755527291492,5103.57,0.00030136,120]
[380067283,1755527291794,3408.05,0.00030136,120]
[380067284,1755527292211,400.0,0.00030136,120]
[380067285,1755527292298,4190.79,0.00030136,120]
[380067286,1755527292719,4614.35,0.00030136,120]
[380067287,1755527294913,701.53,0.00030136,120]
[380067288,1755527295794,400.0,0.00030136,120]
[380067289,1755527295953,400.0,0.00030136,120]
[380067290,1755527296697,7758.99,0.00030136,120]
[380067291,1755527297139,860.53,0.00030136,120]
[380067292,1755527297199,4151.35,0.00030136,120]
[380067293,1755527297464,400.0,0.00030136,120]
[380067294,1755527298508,4369.44,0.00030136,120]
[380067295,1755527298938,1447.18,0.00030136,120]
[380067296,1755527299154,400.0,0.00030136,120]
[380067297,1755527299317,7943.67,0.00030136,120]
[380067298,1755527299539,898.39,0.00030136,120]
[380067299,1755527299829,400.0,0.00030136,120]
[380067300,1755527299896,1736.06,0.00030136,120]
[380067301,1755527300265,731.9,0.00030136,120]
[380067302,1755527300680,1163.76,0.00030136,120]
[380067303,1755527300736,4674.98,0.00030136,120]
[380067304,1755527301163,1993.11,0.00030136,120]
[380067305,1755527301245,5956.51,0.00030136,120]
[380067306,1755527301365,400.0,0.00030136,120]
[380067307,1755527302186,400.0,0.00030136,120]
[380067308,1755527304163,6785.65,0.00030136,120]
[380067309,1755527304319,461.17822801,0.00030136,120]
[380067310,1755527304583,693.25,0.00030136,120]
[380067311,1755527304650,400.0,0.00030136,120]
[380067312,1755527304757,400.0,0.00030136,120]
[380067313,1755527306033,400.0,0.00030136,120]
[380067314,1755527306594,400.0,0.00030136,120]
[380067315,1755527307317,400.0,0.00030136,120]
[380067316,1755527308028,1469.37,0.00030136,120]
[380067317,1755527308903,414.08,0.00030136,120]
[380067318,1755527309000,400.0,0.00030136,120]
[380067319,1755527309126,1421.27,0.00030136,120]
[380067320,1755527309180,632.9,0.00030136,120]
[380067321,1755527309265,400.0,0.00030136,120]
[380067322,1755527310367,4776.8,0.00030136,120]
[380067323,1755527310420,542.88,0.00030136,120]
[380067324,1755527310494,1691.98,0.00030136,120]
[380067325,1755527310689,2363.62,0.00030136,120]
[380067326,1755527311833,10279.42,0.00030136,120]
[380067327,1755527312169,297.22144877,0.00030136,120]
[380067328,1755527312286,400.0,0.00030136,120]
[380067329,1755527313687,3830.26,0.00030136,120]
[380067330,1755527313843,500.0,0.00030136,120]
[380067331,1755527314036,537.04828653,0.00030136,120]
[380067332,1755527314782,400.0,0.00030136,120]
[380067333,1755527317391,400.0,0.00030136,120]
[380067334,1755527317470,400.0,0.00030136,120]
[380067335,1755527317692,7152.86,0.00030136,120]
[380067336,1755527317900,3371.62,0.00030136,120]
[380067337,1755527318199,3206.15,0.00030136,120]
[380067338,1755527318510,4545.82,0.00030136,120]
[380067339,1755527318674,400.0,0.00030136,120]
[380067340,1755527319015,400.0,0.00030136,120]
[380067341,1755527319182,4840.59,0.00030136,120]
[380067342,1755527319292,14650.16,0.00030136,120]
[380067343,1755527319576,400.0,0.00030136,120]
[380067344,1755527320964,400.0,0.00030136,120]
[380067345,1755527321332,1595.26,0.00030136,120]
[380067346,1755527321466,3180.76,0.00030136,120]
[380067347,1755527322151,659.67,0.00030136,120]
[380067349,1755527322695,400.0,0.00030136,120]
[380067350,1755527323245,400.0,0.00030136,120]
[380067351,1755527323930,2536.8,0.00030136,120]
[380067352,1755527324247,304.0,0.0003013,120]
[380067353,1755527324656,3012.94,0.00030136,120]
[380067354,1755527324712,400.0,0.00030136,120]
[380067355,1755527325299,400.0,0.00030136,120]
[380067356,1755527325452,143.75001383,0.00030136,120]
[380067357,1755527411367,-168.86244886,9.641e-05,2]
[380067366,1755527431917,-326.34755114,9.641e-05,2]
[380067367,1755527431926,-200.0,9.838e-05,2]
[380067368,1755527431936,-500.0,9.854e-05,2]
[380067369,1755527431945,-577.0066143,9.854e-05,2]
[380067370,1755527431955,-291.55115445,9.854e-05,2]
[380067371,1755527431965,-300.0,9.855e-05,2]
[380067372,1755527431977,-250.0,9.855e-05,2]
[380067373,1755527431987,-209.94746096,9.872e-05,2]
[380067374,1755527431996,-1299.14,9.875e-05,2]
[380067375,1755527432006,-439.57,9.88e-05,2]
[380067376,1755527432016,-1200.0,9.885e-05,2]
[380067377,1755527432028,-250.0,9.886e-05,2]
[380067378,1755527432037,-844.53,9.961e-05,2]
[380067379,1755527432048,-1000.0,9.991e-05,2]
[380067380,1755527432062,-300.0,0.00010004,2]
[380067381,1755527432072,-176.2,0.00010005,2]
[380067382,1755527432082,-250.0,0.00010007,2]
[380067383,1755527432092,-418.55,0.00010062,2]
[380067384,1755527432106,-150.0,0.0001008,2]
[380067385,1755527432116,-290.308051,0.00010086,2]
[380067386,1755527432127,-150.0,0.00010137,2]
[380067387,1755527432136,-36.0206198,0.00010192,2]
[380067388,1755527432148,-113.9793802,0.00010192,2]
[380067389,1755527432157,-250.0,0.00010196,2]
[380067390,1755527432167,-403.63892602,0.00010327,2]
[380067391,1755527432179,-276.36107398,0.00010327,2]
[380067392,1755527432188,-1806.0,0.00010379,2]
[380067393,1755527432197,-45.46648482,0.00010474,2]
[380067394,1755527432208,-104.53351518,0.00010474,2]
[380067395,1755527432218,-3608.49659577,0.00010475,2]
[380067396,1755527432246,-4142.49340423,0.00010475,2]
[380067397,1755527432255,-3274.05,0.00010475,2]
[380067398,1755527432265,-1151.52,0.00010475,2]
[380067399,1755527432275,-615.72,0.00010475,2]
[380067400,1755527432284,-277.35679052,0.0001048,2]
[380067401,1755527432294,-507.07555535,0.0001048,2]
[380067402,1755527432310,-1182.29582589,0.0001048,2]
[380067403,1755527432322,-2973.09707153,0.0001048,2]
[380067404,1755527432342,-1063.52649688,0.0001048,2]
[380067405,1755527432354,-339.66691684,0.0001048,2]
[380067406,1755527432387,-312.13489786,0.0001048,2]
[380067410,1755527432430,-2897.0143106,0.0001048,2]
[380067412,1755527432439,-9042.68570174,0.00010535,2]
[380067415,1755527432455,-575.29338299,0.00010535,2]
[380067417,1755527432464,-1457.20300523,0.0001059,2]
[380067419,1755527432475,-592.3,0.0001059,2]
[380067423,1755527432503,-969.19187044,0.0001059,2]
[380067428,1755527432639,-1033.63361294,0.0001059,2]
[380067542,1755527439627,-5921.51582225,0.0001059,2]
[380067545,1755527439637,-10342.87655036,0.00010645,2]
[380067548,1755527439647,-10725.56298273,0.000107,2]
[380067551,1755527439658,-11122.40881309,0.00010755,2]
[380067554,1755527439667,-468.52,0.00010767,2]
[380067556,1755527439677,-252.89168263,0.0001078,2]
[380067559,1755527439687,-6783.05038963,0.0001081,2]
[380067562,1755527439696,-300.0,0.00010821,2]
[380067565,1755527439706,-250.0,0.00010821,2]
[380067567,1755527439716,-300.0,0.0001087,2]
[380067570,1755527439726,-250.0,0.0001087,2]
[380067573,1755527439738,-250.0,0.0001087,2]
[380067575,1755527439747,-250.0,0.0001087,2]
[380067577,1755527439757,-250.0,0.0001087,2]
[380067579,1755527439766,-250.0,0.0001087,2]
[380067581,1755527439776,-250.0,0.0001087,2]
[380067583,1755527439786,-151.0,0.0001087,2]
[380067585,1755527439795,-250.0,0.0001087,2]
[380067587,1755527439806,-250.0,0.0001087,2]
[380067589,1755527439816,-382.46762506,0.0001087,2]
[380067591,1755527439826,-151.0,0.0001087,2]
[380067594,1755527439835,-160.0,0.0001087,2]
[380067596,1755527439845,-500.0,0.0001087,2]
[380067598,1755527439854,-200.0,0.0001087,2]
[380067600,1755527439865,-721.12765535,0.0001087,2]
[380067602,1755527439875,-151.0,0.0001087,2]
[380067604,1755527439884,-151.0,0.0001087,2]
[380067606,1755527439894,-151.0,0.0001087,2]
[380067608,1755527439904,-254.78546319,0.0001087,2]
[380067610,1755527439914,-1680.0,0.00010873,2]
[380067612,1755527439924,-182.59587901,0.000109,2]
[380067614,1755527439934,-182.595879,0.000109,2]
[380067616,1755527439944,-182.595879,0.000109,2]
[380067618,1755527439954,-182.595879,0.000109,2]
[380067620,1755527439963,-182.595879,0.000109,2]
[380067622,1755527439973,-182.595879,0.000109,2]
[380067624,1755527439983,-182.595879,0.000109,2]
[380067626,1755527439993,-182.595879,0.000109,2]
[380067628,1755527440002,-500.0,0.00010925,2]
[380067630,1755527440012,-200.0,0.00010961,2]
[380067632,1755527440022,-320.72974999,0.00010973,2]
[380067634,1755527440032,-362.88329643,0.00010973,2]
[380067637,1755527440041,-500.0,0.00010973,2]
[380067638,1755527440056,-500.0,0.00010973,2]
[380067641,1755527440068,-500.0,0.00010973,2]
[380067642,1755527440078,-502.76228858,0.00010973,2]
[380067645,1755527440088,-500.0,0.00010973,2]
[380067647,1755527440098,-500.0,0.00010973,2]
[380067649,1755527440108,-500.0,0.00010973,2]
[380067651,1755527440118,-500.0,0.00010973,2]
[380067653,1755527440130,-501.9139164,0.00010973,2]
[380067655,1755527440140,-500.0,0.00010973,2]
[380067657,1755527440149,-500.0,0.00010973,2]
[380067659,1755527440158,-500.0,0.00010973,2]
[380067661,1755527440170,-500.0,0.0001098,2]
[380067663,1755527440180,-150.0,0.00010987,2]
[380067665,1755527440190,-794.51781732,0.00010987,2]
[380067667,1755527440200,-1012.62074756,0.00010987,2]
[380067669,1755527440210,-1230.7236778,0.00010987,2]
[380067671,1755527440220,-1448.82660805,0.00010988,2]
[380067673,1755527440230,-1666.92953829,0.00010988,2]
[380067675,1755527440242,-1885.03246854,0.00010988,2]
[380067677,1755527440252,-2103.13539878,0.00010988,2]
[380067679,1755527440261,-2321.23832902,0.00010988,2]
[380067681,1755527440271,-2539.34125927,0.00010988,2]
[380067683,1755527440281,-4733.75637591,0.0001099,2]
[380067685,1755527440291,-312.857,0.0001099,2]
[380067687,1755527440301,-5470.005,0.0001099,2]
[380067689,1755527440311,-866.37,0.00010997,2]
[380067691,1755527440321,-25998.1143884,0.00010998,2]
[380067693,1755527440331,-1000.0,0.00010999,2]
[380067696,1755527440341,-2000.0,0.00010999,2]
[380067697,1755527440351,-2000.0,0.00010999,2]
[380067699,1755527440361,-3160.0,0.00011,2]
[380067702,1755527440371,-1484501.85131979,0.00011,2]
[380067704,1755527440381,-7825577.52222091,0.00011,2]
[380067708,1755527440415,-2004.49561033,0.00011,2]
[380067711,1755527440434,-8937.51464379,0.00011,2]
[380067713,1755527440446,-6340.30084234,0.00011,2]
[380067719,1755527440490,-5654.26317395,0.00011,2]
[380067862,1755527441947,-10913.01097082,0.00011,2]
[380067865,1755527441963,-1770.13440773,0.00011,2]
[380067870,1755527442006,-868.80897075,0.00011,2]
[380067927,1755527443767,-3821.10308113,0.00011,2]
[380067928,1755527443782,-16581.2668066,0.00011,2]
[380067929,1755527443805,-197301.50181502,0.00011,2]
[380067930,1755527443852,-2314.0,0.00011,2]
[380067933,1755527443863,-795.07675158,0.00011,2]
[380067936,1755527445819,-150.0,9.8e-05,2]
[380067937,1755527445830,-150.0,0.0001098,2]
[380067938,1755527445839,-1330.02260384,0.00011,2]
[380067939,1755527445855,-11214.19224342,0.00011,2]
[380067940,1755527445867,-2499.9999,0.00011,2]
[380067941,1755527445879,-10541.12791766,0.00011,2]
[380067942,1755527445890,-4476.6,0.00011,2]
[380067943,1755527445981,-296.1,0.00011,2]
[380067944,1755527446095,-23123.70799954,0.00011,2]
[380067945,1755527446174,-4983.62039706,0.00011,2]
[380067946,1755527446301,-422.3538,0.00011,2]
[380067947,1755527446366,-1066.129332,0.00011,2]
[380068345,1755528471341,-219.78,9.788e-05,2]
[380068346,1755528471371,-500.0,9.796e-05,2]
[380068347,1755528471403,-203.43848194,9.796e-05,2]
[380068348,1755528471432,-500.0,9.796e-05,2]
[380068349,1755528471462,-567.03323564,9.796e-05,2]
[380068350,1755528471491,-1200.0,9.799e-05,2]
[380068351,1755528471520,-159.0,9.8e-05,2]
[380068352,1755528471548,-159.0,9.8e-05,2]
[380068353,1755528471577,-162.01,9.8e-05,2]
[380068354,1755528471606,-150.0,9.8e-05,2]
[380068355,1755528471637,-300.0,9.829e-05,2]
[380068356,1755528471666,-182.0,9.852e-05,2]
[380068357,1755528471694,-205.02,9.853e-05,2]
[380068358,1755528471735,-150.0,9.888e-05,2]
[380068359,1755528472135,-200.0,9.895e-05,2]
[380068360,1755528472165,-225.12,9.933e-05,2]
[380068361,1755528472193,-1000.0,9.99e-05,2]
[380068362,1755528472297,-219.78,0.0001,2]
[380068363,1755528472328,-500.0,0.0001,2]
[380068364,1755528472411,-203.43848194,0.0001,2]
[380068365,1755528472472,-500.0,0.0001,2]
[380068366,1755528472487,-567.03323564,0.0001,2]
[380068367,1755528472506,-1200.0,0.0001,2]
[380068368,1755528472549,-159.0,0.0001,2]
[380068369,1755528472564,-159.0,0.0001,2]
[380068370,1755528472575,-162.01,0.0001,2]
[380068371,1755528472590,-150.0,0.0001,2]
[380068372,1755528472601,-300.0,0.0001,2]
[380068373,1755528472619,-182.0,0.0001,2]
[380068374,1755528472638,-205.02,0.0001,2]
[380068375,1755528472649,-150.0,0.0001,2]
[380068376,1755528472668,-200.0,0.0001,2]
[380068377,1755528472796,-225.12,0.0001,2]
[380068378,1755528472819,-1000.0,0.0001,2]
[380068379,1755528472834,-3014.39427274,0.0001,2]
[380068380,1755528626125,170.0,9.84e-05,7]
[380068384,1755528632340,-150.0,9.999e-05,2]
[380068385,1755528632350,-300.0,9.999e-05,2]
[380068386,1755528632359,-300.0,9.999e-05,2]
[380068387,1755528632369,-250.00168242,9.999e-05,2]
[380068388,1755528632380,-463.47800865,9.999e-05,2]
[380068389,1755528632535,-486.52030893,9.999e-05,2]
[380068390,1755528632545,-58218.20400968,0.0001,2]
[380068391,1755528632554,-687.94,0.0001,3]
[380068392,1755528632564,-5000.0,0.00010016,2]
[380068393,1755528632574,-150.39,0.0001002,2]
[380068395,1755528632584,-250.0,0.00010075,2]
[380068397,1755528632593,-266.23,0.00010108,2]
[380068399,1755528632603,-500.0,0.00010137,2]
[380068401,1755528632613,-279.63124574,0.0001021,2]
[380068403,1755528632623,-277.35679052,0.0001048,2]
[380068405,1755528632632,-1169.88,0.0001048,2]
[380068407,1755528632642,-150.99,0.0001048,2]
[380068409,1755528632654,-150.0,0.00010558,2]
[380068411,1755528632664,-150.0,0.00010567,2]
[380068413,1755528632674,-150.0,0.00010584,2]
[380068416,1755528632684,-150.0,0.00010587,2]
[380068418,1755528632694,-150.0,0.00010591,2]
[380068420,1755528632703,-816.28,0.000106,2]
[380068422,1755528632713,-150.0,0.00010604,2]
[380068424,1755528632723,-150.0,0.00010635,2]
[380068426,1755528632733,-150.0,0.00010674,2]
[380068428,1755528632749,-1000.0,0.00010689,2]
[380068430,1755528632769,-150.0,0.000107,2]
[380068432,1755528632791,-1000.0,0.000107,2]
[380068434,1755528632810,-150.0,0.00010723,2]
[380068436,1755528632832,-833.64380335,0.00010757,2]
[380068438,1755528632847,-300.0,0.00010795,2]
[380068440,1755528632856,-150.0,0.00010814,2]
[380068442,1755528632866,-1000.0,0.00010847,2]
[380068444,1755528632875,-500.0,0.00010849,2]
[380068446,1755528632885,-150.0,0.00010852,2]
[380068448,1755528632894,-944.69,0.0001089,2]
[380068450,1755528632904,-300.0,0.00010893,2]
[380068452,1755528632913,-151.0,0.00010893,2]
[380068454,1755528632923,-721.12765535,0.00010893,2]
[380068456,1755528632933,-160.0,0.00010893,2]
[380068458,1755528632942,-500.0,0.00010893,2]
[380068460,1755528632952,-1051.87520383,0.00010897,2]
[380068463,1755528632962,-159.59564193,0.00010897,2]
[380068465,1755528632972,-159.59564189,0.00010898,2]
[380068467,1755528632981,-319.8624,0.00010898,2]
[380068469,1755528632991,-1051.87520383,0.00010899,2]
[380068471,1755528633002,-150.0,0.00010899,2]
[380068473,1755528633011,-155.04846602,0.000109,2]
[380068475,1755528633021,-155.048466,0.000109,2]
[380068477,1755528633031,-155.048466,0.000109,2]
[380068479,1755528633041,-155.048466,0.000109,2]
[380068481,1755528633050,-1051.87520383,0.000109,2]
[380068483,1755528633060,-155.048466,0.000109,2]
[380068485,1755528633070,-533.34192834,0.000109,2]
[380068487,1755528633086,-155.048466,0.000109,2]
[380068488,1755528633101,-190.88464858,0.000109,2]
[380068490,1755528633115,-155.048466,0.000109,2]
[380068492,1755528633126,-155.048466,0.000109,2]
[380068494,1755528633136,-5632.79759388,0.00010941,2]
[380068497,1755528633148,-1759.24015614,0.00010941,2]
[380068499,1755528633160,-480.46360534,0.00010941,2]
[380068501,1755528633172,-1772.89613506,0.00010941,2]
[380068516,1755528633310,-823.84256852,0.00010941,2]
[380068518,1755528633323,-1792.70699205,0.00010941,2]
[380068520,1755528633337,-7236.63874031,0.00010941,2]
[380068522,1755528633348,-500.0,0.00010948,2]
[380068524,1755528633359,-2000.0,0.00010959,2]
[380068526,1755528633369,-150.0,0.00010964,2]
[380068528,1755528633379,-150.0,0.00010971,2]
[380068530,1755528633390,-150.0,0.00010972,2]
[380068532,1755528633399,-500.0,0.00010973,2]
[380068534,1755528633409,-500.0,0.00010973,2]
[380068536,1755528633422,-500.32146994,0.00010973,2]
[380068538,1755528633431,-205.4611133,0.00010973,2]
[380068540,1755528633441,-506.03200363,0.00010973,2]
[380068542,1755528633451,-511.90423526,0.00010973,2]
[380068544,1755528633461,-500.0,0.00010973,2]
[380068546,1755528633471,-500.0,0.00010973,2]
[380068548,1755528633481,-220.10879476,0.00010973,2]
[380068550,1755528633493,-500.0,0.00010973,2]
[380068552,1755528633503,-162.21243398,0.00010973,2]
[380068554,1755528633513,-122.84361462,0.00010973,2]
[380068563,1755528633604,-377.15638538,0.00010973,2]
[380068564,1755528633615,-500.0,0.00010973,2]
[380068565,1755528633624,-500.0,0.00010973,2]
[380068566,1755528633635,-500.0,0.00010973,2]
[380068567,1755528633644,-160.05048684,0.00010973,2]
[380068568,1755528633655,-500.0,0.00010973,2]
[380068569,1755528633666,-500.37266041,0.00010973,2]
[380068570,1755528633676,-500.0,0.00010973,2]
[380068571,1755528633688,-513.3742521,0.00010973,2]
[380068572,1755528633698,-500.0,0.00010973,2]
[380068574,1755528633709,-500.0,0.00010973,2]
[380068576,1755528633720,-500.0,0.00010973,2]
[380068578,1755528633732,-500.0,0.00010973,2]
[380068580,1755528633744,-500.0,0.00010973,2]
[380068582,1755528633755,-500.0,0.00010973,2]
[380068584,1755528633765,-150.0,0.00010973,2]
[380068586,1755528633778,-150.0,0.00010977,2]
[380068588,1755528633789,-159.0,0.0001098,2]
[380068590,1755528633800,-695.39070531,0.0001098,2]
[380068850,1755528638264,-159.59564189,0.00010898,2]
[380068851,1755528638274,-159.59564189,0.00010899,2]
[380068852,1755528638286,-304.60929469,0.0001098,2]
[380068853,1755528638295,-1000.0,0.0001098,2]
[380068854,1755528638306,-1000.0,0.0001098,2]
[380068856,1755528638316,-159.0,0.0001098,3]
[380068858,1755528638325,-159.0,0.0001098,3]